[Event "*** Qualifier 2: Titled Tuesday 3|2 Blitz"]
[Site "Chess.com"]
[Date "2017.04.11"]
[Round "3"]
[White "TheNextLevelFan"]
[Black "Buffy7"]
[Result "0-1"]
[WhiteElo "2382"]
[BlackElo "2523"]
[TimeControl "180+2"]
[EndTime "13:34:32 PDT"]
[Termination "Buffy7 won by resignation"]

1. d4 {[%clk 0:03:02]} 1... d5 {[%clk 0:02:59.7]} 2. c4 {[%clk 0:03:03.3]} 2...
c6 {[%clk 0:03:01]} 3. Nf3 {[%clk 0:03:04.3]} 3... Nf6 {[%clk 0:03:02.6]} 4. e3
{[%clk 0:03:05.9]} 4... e6 {[%clk 0:03:03.9]} 5. Bd3 {[%clk 0:03:07.3]} 5...
Nbd7 {[%clk 0:03:05.3]} 6. O-O {[%clk 0:03:08.4]} 6... Bd6 {[%clk 0:03:06.9]} 7.
Qe2 {[%clk 0:03:09.1]} 7... O-O {[%clk 0:03:04.3]} 8. Nbd2 {[%clk 0:03:09.1]}
8... Re8 {[%clk 0:02:46.7]} 9. Rd1 {[%clk 0:02:47.5]} 9... b6 {[%clk 0:02:37.8]}
10. b3 {[%clk 0:02:47.7]} 10... Bb7 {[%clk 0:02:38.7]} 11. Bb2 {[%clk
0:02:48.4]} 11... c5 {[%clk 0:02:40.1]} 12. Rac1 {[%clk 0:02:38]} 12... Rc8
{[%clk 0:02:36.7]} 13. h3 {[%clk 0:02:34.5]} 13... cxd4 {[%clk 0:02:35]} 14.
exd4 {[%clk 0:02:34.3]} 14... Bb4 {[%clk 0:02:29]} 15. Ne5 {[%clk 0:02:32.2]}
15... Bxd2 {[%clk 0:02:22.3]} 16. Qxd2 {[%clk 0:02:27.2]} 16... dxc4 {[%clk
0:02:20.5]} 17. Bxc4 {[%clk 0:02:21.1]} 17... Nf8 {[%clk 0:02:15.6]} 18. Qf4
{[%clk 0:01:57]} 18... Re7 {[%clk 0:02:10.3]} 19. Re1 {[%clk 0:01:14.7]} 19...
Rec7 {[%clk 0:02:06.2]} 20. Rcd1 {[%clk 0:01:02.6]} 20... Bd5 {[%clk 0:02:05.3]}
21. Rd3 {[%clk 0:00:58]} 21... Ng6 {[%clk 0:02:05.7]} 22. Nxg6 {[%clk
0:00:58.9]} 22... hxg6 {[%clk 0:02:07.6]} 23. Bb5 {[%clk 0:00:51.5]} 23... Rc2
{[%clk 0:02:06]} 24. Rd2 {[%clk 0:00:52.3]} 24... Ne4 {[%clk 0:01:59.6]} 25.
Rde2 {[%clk 0:00:46.8]} 25... Rxe2 {[%clk 0:01:37.7]} 26. Rxe2 {[%clk
0:00:47.2]} 26... Nf6 {[%clk 0:01:39.3]} 27. Bd3 {[%clk 0:00:45]} 27... Qd7
{[%clk 0:01:35.8]} 28. Kh2 {[%clk 0:00:44.4]} 28... Qb7 {[%clk 0:01:36.4]} 29.
Ba3 {[%clk 0:00:44.8]} 29... Bxg2 {[%clk 0:01:35.8]} 30. Bd6 {[%clk 0:00:38]}
30... Bf1 {[%clk 0:01:30]} 0-1

[Event "*** Qualifier 2: Titled Tuesday 3|2 Blitz"]
[Site "Chess.com"]
[Date "2017.04.11"]
[Round "3"]
[White "sorito"]
[Black "DiogenesSinopeus"]
[Result "1-0"]
[WhiteElo "2319"]
[BlackElo "2267"]
[TimeControl "180+2"]
[EndTime "13:34:34 PDT"]
[Termination "sorito won on time"]

1. d4 {[%clk 0:03:02]} 1... Nf6 {[%clk 0:03:00.8]} 2. Nf3 {[%clk 0:03:03.1]}
2... e6 {[%clk 0:03:02.1]} 3. e3 {[%clk 0:03:04.6]} 3... b6 {[%clk 0:03:02.8]}
4. Bd3 {[%clk 0:03:05.9]} 4... Bb7 {[%clk 0:03:03.9]} 5. O-O {[%clk 0:03:06.9]}
5... c5 {[%clk 0:03:04.1]} 6. c3 {[%clk 0:03:07.9]} 6... Be7 {[%clk 0:02:58.8]}
7. Nbd2 {[%clk 0:03:09]} 7... Nc6 {[%clk 0:03:00.2]} 8. Qe2 {[%clk 0:03:10.2]}
8... d5 {[%clk 0:02:57]} 9. Rd1 {[%clk 0:02:55.3]} 9... O-O {[%clk 0:02:56.5]}
10. h3 {[%clk 0:02:50.9]} 10... Qc7 {[%clk 0:02:40.4]} 11. dxc5 {[%clk
0:02:51.5]} 11... Bxc5 {[%clk 0:02:32.7]} 12. e4 {[%clk 0:02:52.2]} 12... Be7
{[%clk 0:01:46.1]} 13. e5 {[%clk 0:02:34.5]} 13... Nd7 {[%clk 0:01:46.9]} 14.
Nb3 {[%clk 0:02:33.7]} 14... Ndxe5 {[%clk 0:01:29.5]} 15. Bf4 {[%clk 0:02:24.3]}
15... Nxf3+ {[%clk 0:01:23.3]} 16. Qxf3 {[%clk 0:02:24.3]} 16... e5 {[%clk
0:01:20.9]} 17. Bg3 {[%clk 0:02:07.7]} 17... Rad8 {[%clk 0:00:31.3]} 18. Nd4
{[%clk 0:02:03.4]} 18... Nxd4 {[%clk 0:00:25.5]} 19. cxd4 {[%clk 0:02:04.4]}
19... Bd6 {[%clk 0:00:24.2]} 20. dxe5 {[%clk 0:02:03.7]} 20... Bxe5 {[%clk
0:00:13.9]} 21. Qf5 {[%clk 0:01:57.7]} 21... g6 {[%clk 0:00:13.2]} 22. Qxe5
{[%clk 0:01:57.6]} 22... Qc6 {[%clk 0:00:12.3]} 23. Rac1 {[%clk 0:01:57.9]}
23... Qa4 {[%clk 0:00:10.9]} 24. Qf6 {[%clk 0:01:56.3]} 24... Rfe8 {[%clk
0:00:04.8]} 25. Be5 {[%clk 0:01:57.2]} 25... Rxe5 {[%clk 0:00:03.8]} 26. Qxe5
{[%clk 0:01:57.8]} 26... Qxa2 {[%clk 0:00:03.8]} 27. Bb5 {[%clk 0:01:57.2]}
27... Qb3 {[%clk 0:00:02.9]} 28. Qe7 {[%clk 0:01:53.6]} 1-0

[Event "*** Qualifier 2: Titled Tuesday 3|2 Blitz"]
[Site "Chess.com"]
[Date "2017.04.11"]
[Round "3"]
[White "biostatistician"]
[Black "XDPS"]
[Result "0-1"]
[WhiteElo "2432"]
[BlackElo "2577"]
[TimeControl "180+2"]
[EndTime "13:34:40 PDT"]
[Termination "XDPS won by resignation"]

1. d4 {[%clk 0:03:02]} 1... d5 {[%clk 0:02:49.3]} 2. Nf3 {[%clk 0:03:03.9]} 2...
Nf6 {[%clk 0:02:49.8]} 3. c4 {[%clk 0:03:05.8]} 3... dxc4 {[%clk 0:02:50.6]} 4.
e3 {[%clk 0:03:06.4]} 4... Bg4 {[%clk 0:02:50.5]} 5. Bxc4 {[%clk 0:03:07.5]}
5... e6 {[%clk 0:02:50.5]} 6. O-O {[%clk 0:03:08.2]} 6... a6 {[%clk 0:02:51]} 7.
b3 {[%clk 0:03:07]} 7... Nc6 {[%clk 0:02:51.7]} 8. Bb2 {[%clk 0:03:02.9]} 8...
Bd6 {[%clk 0:02:53.2]} 9. Nbd2 {[%clk 0:03:02.9]} 9... O-O {[%clk 0:02:53.9]}
10. h3 {[%clk 0:03:03.8]} 10... Bh5 {[%clk 0:02:54.4]} 11. Rc1 {[%clk
0:03:03.4]} 11... Qe7 {[%clk 0:02:55]} 12. e4 {[%clk 0:02:51.4]} 12... e5 {[%clk
0:02:54.1]} 13. d5 {[%clk 0:02:47]} 13... Nb8 {[%clk 0:02:54.5]} 14. Be2 {[%clk
0:02:40.9]} 14... Bg6 {[%clk 0:02:52.9]} 15. Bd3 {[%clk 0:02:35.4]} 15... Nbd7
{[%clk 0:02:53.5]} 16. Nh4 {[%clk 0:02:21.4]} 16... Nc5 {[%clk 0:02:48.9]} 17.
Nxg6 {[%clk 0:02:18.6]} 17... fxg6 {[%clk 0:02:35.3]} 18. Bb1 {[%clk 0:02:19.4]}
18... Nh5 {[%clk 0:02:36.2]} 19. b4 {[%clk 0:02:16.8]} 19... Nd7 {[%clk
0:02:36.8]} 20. a3 {[%clk 0:02:18.1]} 20... a5 {[%clk 0:02:29.4]} 21. Nc4 {[%clk
0:02:03.5]} 21... axb4 {[%clk 0:02:29.5]} 22. axb4 {[%clk 0:02:05.4]} 22... Nf4
{[%clk 0:02:19.9]} 23. Qg4 {[%clk 0:01:51.3]} 23... h5 {[%clk 0:02:18.6]} 24.
Qf3 {[%clk 0:01:43.3]} 24... Nf6 {[%clk 0:02:01.1]} 25. Qe3 {[%clk 0:01:22.7]}
25... g5 {[%clk 0:01:57.4]} 26. Nxd6 {[%clk 0:01:10.2]} 26... cxd6 {[%clk
0:01:57.2]} 27. Kh2 {[%clk 0:00:53.9]} 27... g4 {[%clk 0:01:57.3]} 28. h4 {[%clk
0:00:45.8]} 28... g3+ {[%clk 0:01:51.2]} 29. Qxg3 {[%clk 0:00:44.9]} 29... Ng4+
{[%clk 0:01:51.1]} 30. Kh1 {[%clk 0:00:44.7]} 30... Ne2 {[%clk 0:01:52.4]} 31.
Qh3 {[%clk 0:00:34.8]} 31... Nxc1 {[%clk 0:01:52]} 32. Bxc1 {[%clk 0:00:20.3]}
32... Rxf2 {[%clk 0:01:52.3]} 33. Rxf2 {[%clk 0:00:21.7]} 33... Nxf2+ {[%clk
0:01:53.1]} 0-1

[Event "*** Qualifier 2: Titled Tuesday 3|2 Blitz"]
[Site "Chess.com"]
[Date "2017.04.11"]
[Round "3"]
[White "Bigfish1995"]
[Black "Alex_Molchanov"]
[Result "1-0"]
[WhiteElo "2649"]
[BlackElo "2398"]
[TimeControl "180+2"]
[EndTime "13:34:50 PDT"]
[Termination "Bigfish1995 won by resignation"]

1. b3 {[%clk 0:03:02]} 1... d5 {[%clk 0:02:59.2]} 2. Bb2 {[%clk 0:03:02.4]} 2...
c5 {[%clk 0:03:00.9]} 3. Nf3 {[%clk 0:03:01.4]} 3... Nf6 {[%clk 0:02:59.5]} 4.
Bxf6 {[%clk 0:03:00]} 4... gxf6 {[%clk 0:02:58.4]} 5. Nc3 {[%clk 0:02:56.6]}
5... f5 {[%clk 0:02:33.8]} 6. Na4 {[%clk 0:02:44.7]} 6... e6 {[%clk 0:02:27.3]}
7. e3 {[%clk 0:02:44]} 7... a6 {[%clk 0:02:21.4]} 8. d4 {[%clk 0:02:40.6]} 8...
c4 {[%clk 0:02:14]} 9. c3 {[%clk 0:02:33.3]} 9... Qa5 {[%clk 0:01:48.8]} 10. b4
{[%clk 0:02:21.3]} 10... Qd8 {[%clk 0:00:39.6]} 11. Ne5 {[%clk 0:02:19.5]} 11...
Nd7 {[%clk 0:00:33.4]} 12. g4 {[%clk 0:02:06.5]} 12... Nxe5 {[%clk 0:00:31.5]}
13. dxe5 {[%clk 0:02:07.3]} 13... fxg4 {[%clk 0:00:21.1]} 14. Qxg4 {[%clk
0:02:06.9]} 14... h5 {[%clk 0:00:22.7]} 15. Qd4 {[%clk 0:02:06.9]} 15... Bd7
{[%clk 0:00:20.7]} 16. Nb6 {[%clk 0:02:06.8]} 16... Rb8 {[%clk 0:00:19.5]} 17.
a4 {[%clk 0:02:07.8]} 17... Qc7 {[%clk 0:00:14.8]} 18. Rg1 {[%clk 0:02:07.2]}
18... h4 {[%clk 0:00:13.7]} 19. a5 {[%clk 0:02:06.7]} 19... Rh5 {[%clk
0:00:12.6]} 20. f4 {[%clk 0:02:07.6]} 20... Rh8 {[%clk 0:00:13.1]} 21. e4 {[%clk
0:02:06.3]} 21... Bc6 {[%clk 0:00:11.1]} 22. exd5 {[%clk 0:02:05.5]} 22... exd5
{[%clk 0:00:12.3]} 23. Bh3 {[%clk 0:02:05.2]} 23... Rd8 {[%clk 0:00:12.3]} 24.
f5 {[%clk 0:02:04.3]} 24... Bh6 {[%clk 0:00:11.4]} 25. f6 {[%clk 0:02:04.8]}
25... Kf8 {[%clk 0:00:10.5]} 26. Ke2 {[%clk 0:01:59.5]} 26... Bb5 {[%clk
0:00:06.3]} 27. Rae1 {[%clk 0:01:57.9]} 27... Re8 {[%clk 0:00:07.6]} 28. Kd1
{[%clk 0:01:58.4]} 28... Rg8 {[%clk 0:00:04.1]} 29. Rxg8+ {[%clk 0:01:58.1]}
29... Kxg8 {[%clk 0:00:05.6]} 30. Qxh4 {[%clk 0:01:58.4]} 30... Rxe5 {[%clk
0:00:03.3]} 31. Rg1+ {[%clk 0:01:58.4]} 31... Bg5 {[%clk 0:00:02.4]} 32. Rxg5+
{[%clk 0:01:58.5]} 32... Rxg5 {[%clk 0:00:03.6]} 33. Qxg5+ {[%clk 0:01:59.8]}
1-0

[Event "*** Qualifier 2: Titled Tuesday 3|2 Blitz"]
[Site "Chess.com"]
[Date "2017.04.11"]
[Round "3"]
[White "Dulger"]
[Black "Saitama_Hero"]
[Result "0-1"]
[WhiteElo "2259"]
[BlackElo "2177"]
[TimeControl "180+2"]
[EndTime "13:34:57 PDT"]
[Termination "Saitama_Hero won by resignation"]

1. Nf3 {[%clk 0:03:02]} 1... Nf6 {[%clk 0:02:59.5]} 2. g3 {[%clk 0:03:00.8]}
2... g6 {[%clk 0:03:01.4]} 3. Bg2 {[%clk 0:03:00.8]} 3... Bg7 {[%clk 0:03:03.3]}
4. O-O {[%clk 0:03:02.4]} 4... O-O {[%clk 0:03:05.2]} 5. c4 {[%clk 0:03:04.1]}
5... d5 {[%clk 0:03:05.9]} 6. cxd5 {[%clk 0:03:04.8]} 6... Nxd5 {[%clk
0:03:07.8]} 7. d4 {[%clk 0:03:06.7]} 7... Nb6 {[%clk 0:03:06.6]} 8. Nc3 {[%clk
0:03:08]} 8... Nc6 {[%clk 0:03:07.6]} 9. d5 {[%clk 0:03:09.5]} 9... Na5 {[%clk
0:03:07.6]} 10. Qc2 {[%clk 0:03:11.1]} 10... c6 {[%clk 0:03:07.3]} 11. dxc6
{[%clk 0:03:00.2]} 11... Nxc6 {[%clk 0:03:01.8]} 12. Rd1 {[%clk 0:03:01.2]}
12... Bd7 {[%clk 0:03:01.5]} 13. Bg5 {[%clk 0:02:53.4]} 13... h6 {[%clk
0:03:00.2]} 14. Be3 {[%clk 0:02:53.1]} 14... Rc8 {[%clk 0:02:47.3]} 15. Nd4
{[%clk 0:02:48.5]} 15... Ne5 {[%clk 0:02:30.8]} 16. Bxb7 {[%clk 0:02:38.8]}
16... Rc7 {[%clk 0:02:29]} 17. Bg2 {[%clk 0:02:39.5]} 17... Qc8 {[%clk
0:02:25.6]} 18. Bf4 {[%clk 0:01:44.7]} 18... g5 {[%clk 0:01:59.6]} 19. Bxe5
{[%clk 0:01:39.3]} 19... Bxe5 {[%clk 0:02:01.5]} 20. Qe4 {[%clk 0:01:40.8]}
20... Bg7 {[%clk 0:01:50.2]} 21. Qxe7 {[%clk 0:00:55.4]} 21... Ba4 {[%clk
0:01:44.5]} 22. Qb4 {[%clk 0:00:51.5]} 22... Bxd1 {[%clk 0:01:44]} 23. Rxd1
{[%clk 0:00:53.4]} 23... Rc4 {[%clk 0:01:42.9]} 24. Qd6 {[%clk 0:00:45.8]} 24...
Rd8 {[%clk 0:01:40.8]} 25. Qxd8+ {[%clk 0:00:47]} 25... Qxd8 {[%clk 0:01:40.1]}
26. Nf5 {[%clk 0:00:48.3]} 26... Qf6 {[%clk 0:01:19.3]} 27. e4 {[%clk
0:00:47.4]} 27... Rb4 {[%clk 0:01:17.3]} 28. Rd2 {[%clk 0:00:30.6]} 28... Nc4
{[%clk 0:01:12.6]} 29. Rd4 {[%clk 0:00:31.8]} 29... Qxd4 {[%clk 0:01:09.6]} 30.
Nxd4 {[%clk 0:00:32.6]} 30... Bxd4 {[%clk 0:01:11.3]} 31. Nd5 {[%clk 0:00:33.8]}
0-1

[Event "*** Qualifier 2: Titled Tuesday 3|2 Blitz"]
[Site "Chess.com"]
[Date "2017.04.11"]
[Round "3"]
[White "Witik"]
[Black "Keranke"]
[Result "1-0"]
[WhiteElo "2506"]
[BlackElo "2660"]
[TimeControl "180+2"]
[EndTime "13:35:15 PDT"]
[Termination "Witik won by resignation"]

1. d4 {[%clk 0:03:00.6]} 1... g6 {[%clk 0:03:01]} 2. e4 {[%clk 0:03:01.5]} 2...
Bg7 {[%clk 0:03:02.6]} 3. Nc3 {[%clk 0:03:02.3]} 3... d6 {[%clk 0:03:04.2]} 4.
h3 {[%clk 0:03:00.7]} 4... a6 {[%clk 0:03:04.7]} 5. a4 {[%clk 0:03:01.4]} 5...
b6 {[%clk 0:03:05.8]} 6. Nf3 {[%clk 0:02:58.2]} 6... Bb7 {[%clk 0:03:06.7]} 7.
Bd3 {[%clk 0:02:59.1]} 7... c5 {[%clk 0:03:05.5]} 8. d5 {[%clk 0:02:56.6]} 8...
Nf6 {[%clk 0:03:05.9]} 9. O-O {[%clk 0:02:57]} 9... O-O {[%clk 0:03:07.5]} 10.
Re1 {[%clk 0:02:55.4]} 10... Nbd7 {[%clk 0:03:08]} 11. Bg5 {[%clk 0:02:56.2]}
11... Qc7 {[%clk 0:03:08.9]} 12. Bf1 {[%clk 0:02:54.7]} 12... Rfe8 {[%clk
0:02:58.6]} 13. Qd2 {[%clk 0:02:52.2]} 13... e6 {[%clk 0:02:59.3]} 14. Bc4
{[%clk 0:02:42.6]} 14... exd5 {[%clk 0:02:53.2]} 15. exd5 {[%clk 0:02:38.3]}
15... Rxe1+ {[%clk 0:02:32.5]} 16. Rxe1 {[%clk 0:02:38.6]} 16... Re8 {[%clk
0:02:34.1]} 17. Re3 {[%clk 0:02:32.9]} 17... Qc8 {[%clk 0:02:21.1]} 18. Qe2
{[%clk 0:02:31.2]} 18... Rxe3 {[%clk 0:02:21.4]} 19. Qxe3 {[%clk 0:02:32.4]}
19... b5 {[%clk 0:02:18.1]} 20. axb5 {[%clk 0:02:31.2]} 20... Nb6 {[%clk
0:02:19.3]} 21. bxa6 {[%clk 0:02:29]} 21... Nxc4 {[%clk 0:02:12]} 22. axb7
{[%clk 0:02:28.9]} 22... Qxb7 {[%clk 0:02:13.9]} 23. Qf4 {[%clk 0:02:24.1]}
23... Qxb2 {[%clk 0:02:03.7]} 24. Bxf6 {[%clk 0:02:22.8]} 24... Bxf6 {[%clk
0:01:41.7]} 25. Qxf6 {[%clk 0:02:23]} 25... h6 {[%clk 0:01:42]} 26. g3 {[%clk
0:02:17.4]} 26... Qxc2 {[%clk 0:01:40.3]} 27. h4 {[%clk 0:02:13.5]} 27... h5
{[%clk 0:01:22]} 28. Ng5 {[%clk 0:02:02.2]} 28... Ne5 {[%clk 0:01:23.1]} 29.
Nce4 {[%clk 0:01:57.5]} 29... Qd1+ {[%clk 0:01:14.1]} 30. Kg2 {[%clk 0:01:58.4]}
30... Qxd5 {[%clk 0:01:14.8]} 31. Qe7 {[%clk 0:01:51.8]} 31... Nc4 {[%clk
0:01:07.2]} 32. f3 {[%clk 0:01:42.2]} 32... Kg7 {[%clk 0:01:04.7]} 33. Qf6+
{[%clk 0:01:40.9]} 33... Kg8 {[%clk 0:01:04.2]} 34. Qd8+ {[%clk 0:01:27.3]}
34... Kg7 {[%clk 0:01:04.5]} 35. Qf6+ {[%clk 0:01:20.8]} 35... Kf8 {[%clk
0:00:56]} 36. Nh7+ {[%clk 0:01:17.5]} 36... Kg8 {[%clk 0:00:51.7]} 37. Qd8+
{[%clk 0:01:11]} 37... Kg7 {[%clk 0:00:51.2]} 38. Qf8+ {[%clk 0:01:08.9]} 1-0

[Event "*** Qualifier 2: Titled Tuesday 3|2 Blitz"]
[Site "Chess.com"]
[Date "2017.04.11"]
[Round "3"]
[White "ViIIagra"]
[Black "Maitreia"]
[Result "1-0"]
[WhiteElo "2498"]
[BlackElo "2498"]
[TimeControl "180+2"]
[EndTime "13:35:16 PDT"]
[Termination "ViIIagra won by resignation"]

1. e4 {[%clk 0:03:01.1]} 1... c5 {[%clk 0:03:00.4]} 2. Nf3 {[%clk 0:03:02.5]}
2... g6 {[%clk 0:03:00.7]} 3. d4 {[%clk 0:02:58.9]} 3... cxd4 {[%clk 0:03:01.5]}
4. Nxd4 {[%clk 0:03:00.8]} 4... Nc6 {[%clk 0:03:01.6]} 5. c4 {[%clk 0:03:00.6]}
5... Nf6 {[%clk 0:03:01.1]} 6. Nc3 {[%clk 0:03:00.6]} 6... Nxd4 {[%clk
0:03:02.2]} 7. Qxd4 {[%clk 0:03:01.3]} 7... d6 {[%clk 0:03:04.1]} 8. Be2 {[%clk
0:02:46.5]} 8... Bg7 {[%clk 0:03:03.7]} 9. Be3 {[%clk 0:02:36.6]} 9... O-O
{[%clk 0:03:04.7]} 10. Qd2 {[%clk 0:02:37.7]} 10... a5 {[%clk 0:03:05.7]} 11.
O-O {[%clk 0:02:33.9]} 11... Bd7 {[%clk 0:03:07.3]} 12. f3 {[%clk 0:02:32]}
12... Bc6 {[%clk 0:03:08.8]} 13. b3 {[%clk 0:02:31.9]} 13... Nd7 {[%clk
0:03:10.3]} 14. Rab1 {[%clk 0:02:33.6]} 14... Nc5 {[%clk 0:03:11.9]} 15. Nb5
{[%clk 0:02:35.1]} 15... Be5 {[%clk 0:03:05.8]} 16. Rfd1 {[%clk 0:02:32.3]}
16... h5 {[%clk 0:03:01.8]} 17. Qe1 {[%clk 0:02:10.9]} 17... b6 {[%clk
0:03:00.2]} 18. Qh4 {[%clk 0:01:56.8]} 18... e6 {[%clk 0:02:56.2]} 19. Bg5
{[%clk 0:01:57.4]} 19... f6 {[%clk 0:02:50.4]} 20. Bh6 {[%clk 0:01:58]} 20...
Rf7 {[%clk 0:02:30.9]} 21. f4 {[%clk 0:01:57.5]} 21... Bxb5 {[%clk 0:02:32]} 22.
fxe5 {[%clk 0:01:50.7]} 22... Bc6 {[%clk 0:02:27.8]} 23. Rxd6 {[%clk 0:01:50.7]}
23... Qe8 {[%clk 0:02:29.3]} 24. Bf3 {[%clk 0:01:22.9]} 24... fxe5 {[%clk
0:02:24.7]} 25. Be3 {[%clk 0:01:15.8]} 25... Qf8 {[%clk 0:02:07.6]} 26. Rxc6
{[%clk 0:01:14]} 26... Rxf3 {[%clk 0:02:06.5]} 27. gxf3 {[%clk 0:01:09.4]} 27...
Qxf3 {[%clk 0:02:08.4]} 28. Bxc5 {[%clk 0:01:09.3]} 28... bxc5 {[%clk
0:02:04.6]} 29. Rf1 {[%clk 0:01:07.1]} 29... Qe3+ {[%clk 0:01:57.2]} 30. Qf2
{[%clk 0:01:07.7]} 30... Qxe4 {[%clk 0:01:58.6]} 31. Qf7+ {[%clk 0:01:08]} 31...
Kh8 {[%clk 0:01:59.9]} 32. Qf6+ {[%clk 0:01:04]} 32... Kg8 {[%clk 0:02:00]} 33.
Qxe6+ {[%clk 0:01:04.8]} 33... Kh8 {[%clk 0:02:01.5]} 34. Qf6+ {[%clk
0:01:02.8]} 34... Kh7 {[%clk 0:02:02.2]} 35. Rc7+ {[%clk 0:01:03.1]} 35... Kh6
{[%clk 0:02:02.9]} 36. Qf3 {[%clk 0:00:42.8]} 36... Qd4+ {[%clk 0:02:04]} 37.
Kh1 {[%clk 0:00:39.3]} 37... Re8 {[%clk 0:01:55.2]} 38. Re1 {[%clk 0:00:39.6]}
38... e4 {[%clk 0:01:42]} 39. Qe3+ {[%clk 0:00:40.5]} 39... g5 {[%clk
0:01:43.6]} 40. Qxd4 {[%clk 0:00:41.4]} 40... cxd4 {[%clk 0:01:44.9]} 41. Rd7
{[%clk 0:00:43.2]} 41... d3 {[%clk 0:01:32]} 42. Rxd3 {[%clk 0:00:45.1]} 1-0

[Event "*** Qualifier 2: Titled Tuesday 3|2 Blitz"]
[Site "Chess.com"]
[Date "2017.04.11"]
[Round "3"]
[White "pastouche06"]
[Black "nonscitis"]
[Result "1-0"]
[WhiteElo "2302"]
[BlackElo "2357"]
[TimeControl "180+2"]
[EndTime "13:35:31 PDT"]
[Termination "pastouche06 won by resignation"]

1. c4 {[%clk 0:03:02]} 1... Nf6 {[%clk 0:02:58.1]} 2. Nc3 {[%clk 0:03:02]} 2...
c5 {[%clk 0:02:54.8]} 3. g3 {[%clk 0:03:00.9]} 3... g6 {[%clk 0:02:54.8]} 4. Bg2
{[%clk 0:02:59.9]} 4... Bg7 {[%clk 0:02:56.3]} 5. Nf3 {[%clk 0:03:01.1]} 5...
O-O {[%clk 0:02:57.7]} 6. O-O {[%clk 0:03:01]} 6... Nc6 {[%clk 0:02:58.3]} 7. d4
{[%clk 0:03:01.9]} 7... cxd4 {[%clk 0:02:59.2]} 8. Nxd4 {[%clk 0:03:03.8]} 8...
Qa5 {[%clk 0:03:00]} 9. Nb3 {[%clk 0:02:43]} 9... Qh5 {[%clk 0:02:56.1]} 10. c5
{[%clk 0:02:31.3]} 10... d6 {[%clk 0:02:37.9]} 11. cxd6 {[%clk 0:02:15.2]} 11...
exd6 {[%clk 0:02:36.8]} 12. e4 {[%clk 0:02:10.7]} 12... Bg4 {[%clk 0:02:25.2]}
13. f3 {[%clk 0:02:10.8]} 13... Bh3 {[%clk 0:02:25.4]} 14. Bf4 {[%clk
0:02:04.4]} 14... Bxg2 {[%clk 0:01:45.7]} 15. Kxg2 {[%clk 0:02:06.3]} 15... g5
{[%clk 0:01:42]} 16. g4 {[%clk 0:01:50.5]} 16... Qg6 {[%clk 0:01:37.4]} 17. Bg3
{[%clk 0:01:51.4]} 17... Rfd8 {[%clk 0:01:34.2]} 18. Qd2 {[%clk 0:01:25.7]}
18... Ne5 {[%clk 0:01:16.7]} 19. Rad1 {[%clk 0:01:25]} 19... Nc4 {[%clk
0:00:55]} 20. Qe2 {[%clk 0:01:25.2]} 20... Rac8 {[%clk 0:00:49.7]} 21. Nd4
{[%clk 0:01:26]} 21... Ne8 {[%clk 0:00:24.3]} 22. Nf5 {[%clk 0:01:23.3]} 22...
Bf8 {[%clk 0:00:23.4]} 23. Nd5 {[%clk 0:01:19.9]} 23... Nf6 {[%clk 0:00:11.6]}
24. Nde7+ {[%clk 0:01:18.7]} 24... Bxe7 {[%clk 0:00:09.1]} 25. Nxe7+ {[%clk
0:01:20.6]} 25... Kg7 {[%clk 0:00:10.9]} 26. Nxg6 {[%clk 0:01:21.7]} 26... hxg6
{[%clk 0:00:12.8]} 27. b3 {[%clk 0:01:20.3]} 27... Ne5 {[%clk 0:00:09.6]} 28.
Rc1 {[%clk 0:01:19.8]} 28... Nc6 {[%clk 0:00:09.5]} 29. Qb2 {[%clk 0:01:19.2]}
29... Re8 {[%clk 0:00:04.8]} 30. h4 {[%clk 0:01:16.8]} 30... Ne5 {[%clk
0:00:02.7]} 31. hxg5 {[%clk 0:01:15.6]} 31... Rxc1 {[%clk 0:00:02.7]} 32. gxf6+
{[%clk 0:01:15.8]} 32... Kxf6 {[%clk 0:00:04.5]} 1-0

[Event "*** Qualifier 2: Titled Tuesday 3|2 Blitz"]
[Site "Chess.com"]
[Date "2017.04.11"]
[Round "3"]
[White "OparinGrigoriy"]
[Black "tigra"]
[Result "1-0"]
[WhiteElo "2640"]
[BlackElo "2605"]
[TimeControl "180+2"]
[EndTime "13:35:36 PDT"]
[Termination "OparinGrigoriy won by resignation"]

1. e4 {[%clk 0:03:02]} 1... e6 {[%clk 0:03:02]} 2. d4 {[%clk 0:03:02.6]} 2... d5
{[%clk 0:03:03.9]} 3. Nc3 {[%clk 0:03:04.3]} 3... Bb4 {[%clk 0:03:01]} 4. e5
{[%clk 0:03:05.5]} 4... Ne7 {[%clk 0:03:01.4]} 5. a3 {[%clk 0:03:07]} 5... Bxc3+
{[%clk 0:03:02.3]} 6. bxc3 {[%clk 0:03:08.9]} 6... c5 {[%clk 0:03:04]} 7. Nf3
{[%clk 0:03:10.5]} 7... Bd7 {[%clk 0:03:04.4]} 8. a4 {[%clk 0:03:11.1]} 8... Qc7
{[%clk 0:03:04.3]} 9. Be2 {[%clk 0:03:04.8]} 9... Nbc6 {[%clk 0:03:03.6]} 10.
O-O {[%clk 0:02:58.4]} 10... f6 {[%clk 0:02:49.7]} 11. exf6 {[%clk 0:02:55.6]}
11... gxf6 {[%clk 0:02:51.6]} 12. c4 {[%clk 0:02:33.3]} 12... O-O-O {[%clk
0:02:46.5]} 13. dxc5 {[%clk 0:02:30.3]} 13... Rhg8 {[%clk 0:02:44.9]} 14. g3
{[%clk 0:02:28.8]} 14... h5 {[%clk 0:02:36.1]} 15. Bb2 {[%clk 0:02:24.7]} 15...
d4 {[%clk 0:02:26.2]} 16. Nxd4 {[%clk 0:01:49.9]} 16... Nxd4 {[%clk 0:02:26.6]}
17. Qxd4 {[%clk 0:01:49.4]} 17... Nf5 {[%clk 0:02:25.5]} 18. Qxf6 {[%clk
0:01:48.2]} 18... Nxg3 {[%clk 0:02:17.7]} 19. fxg3 {[%clk 0:01:36.2]} 19...
Rxg3+ {[%clk 0:02:18.3]} 20. Kf2 {[%clk 0:01:37.8]} 20... Rdg8 {[%clk
0:02:14.4]} 21. Qe5 {[%clk 0:01:34]} 21... Rg2+ {[%clk 0:02:13]} 22. Ke1 {[%clk
0:01:35.1]} 22... Qa5+ {[%clk 0:02:03.6]} 23. Bc3 {[%clk 0:01:36.1]} 23... Qa6
{[%clk 0:02:04.4]} 24. Rd1 {[%clk 0:01:13.8]} 24... Qxa4 {[%clk 0:02:01.8]} 25.
c6 {[%clk 0:01:06.4]} 25... Bxc6 {[%clk 0:01:37.5]} 26. Qxe6+ {[%clk 0:01:05]}
26... Bd7 {[%clk 0:01:39]} 27. Qe7 {[%clk 0:00:26.1]} 27... Re8 {[%clk
0:01:14.6]} 28. Rf8 {[%clk 0:00:26.6]} 28... Rxe2+ {[%clk 0:01:15.2]} 29. Kxe2
{[%clk 0:00:27.3]} 29... Qxc2+ {[%clk 0:01:01.2]} 30. Rd2 {[%clk 0:00:25.2]}
30... Bg4+ {[%clk 0:01:01]} 31. Kf2 {[%clk 0:00:26]} 31... Qf5+ {[%clk
0:00:56.5]} 32. Rxf5 {[%clk 0:00:26.8]} 32... Rxe7 {[%clk 0:00:58.4]} 33. Rc5+
{[%clk 0:00:27.7]} 33... Rc7 {[%clk 0:00:57.7]} 34. Rxc7+ {[%clk 0:00:28.9]}
34... Kxc7 {[%clk 0:00:59.6]} 35. Ke3 {[%clk 0:00:30]} 1-0